[Event "Titled Tuesday Blitz August 3 2021"]
[White "Xiong, Jeffery"]
[Black "Rasulov, Vugar"]
[WhiteFideId "2047640"]
[BlackFideId "13402390"]
[WhiteElo "2724"]
[BlackElo "2553"]
[Result "1/2-1/2"]
[Round "09"]
[TimeControl "180+1"]
[Date "2021.08.03"]
[WhiteClock "0:00:02"]
[BlackClock "0:00:05"]

1. c4 {[%clk 0:01:43]}  Nf6 {[%clk 0:02:59]} 2. Nc3 {[%clk 0:01:41]}  e6 {[%clk 0:02:59]} 3. e4 {[%clk 0:01:41]}  d5 {[%clk 0:02:56]} 4. e5 {[%clk 0:01:42]}  Nfd7 {[%clk 0:02:55]} 5. d4 {[%clk 0:01:39]}  dxc4 {[%clk 0:02:52]} 6. Bxc4 {[%clk 0:01:40]}  c5 {[%clk 0:02:51]} 7. d5 {[%clk 0:01:26]}  Nxe5 {[%clk 0:02:40]} 8. Bb5+ {[%clk 0:01:25]}  Bd7 {[%clk 0:02:36]} 9. dxe6 {[%clk 0:01:25]}  fxe6 {[%clk 0:02:37]} 10. Qh5+ {[%clk 0:01:19]}  Nf7 {[%clk 0:02:37]} 11. Bc4 {[%clk 0:01:15]}  g6 {[%clk 0:02:27]} 12. Qe2 {[%clk 0:01:14]}  Bg7 {[%clk 0:02:22]} 13. Nf3 {[%clk 0:01:13]}  Nc6 {[%clk 0:02:19]} 14. Be3 {[%clk 0:01:12]}  Nd4 {[%clk 0:02:14]} 15. Bxd4 {[%clk 0:01:12]}  cxd4 {[%clk 0:02:15]} 16. Ne4 {[%clk 0:01:13]}  Qa5+ {[%clk 0:02:12]} 17. Qd2 {[%clk 0:01:06]}  Qxd2+ {[%clk 0:02:11]} 18. Kxd2 {[%clk 0:01:07]}  Rc8 {[%clk 0:02:07]} 19. Kd3 {[%clk 0:01:05]}  Ke7 {[%clk 0:02:03]} 20. b4 {[%clk 0:01:01]}  Rxc4 {[%clk 0:01:52]} 21. Kxc4 {[%clk 0:01:01]}  Rc8+ {[%clk 0:01:52]} 22. Kb3 {[%clk 0:01:00]}  Bc6 {[%clk 0:01:52]} 23. Rhe1 {[%clk 0:00:56]}  Bd5+ {[%clk 0:01:52]} 24. Ka3 {[%clk 0:00:56]}  d3 {[%clk 0:01:43]} 25. Rad1 {[%clk 0:00:54]}  Rc2 {[%clk 0:01:35]} 26. Rd2 {[%clk 0:00:54]}  b5 {[%clk 0:01:09]} 27. Rxc2 {[%clk 0:00:34]}  dxc2 {[%clk 0:01:10]} 28. Nfd2 {[%clk 0:00:21]}  Bh6 {[%clk 0:00:51]} 29. Kb2 {[%clk 0:00:20]}  Bxe4 {[%clk 0:00:45]} 30. Nxe4 {[%clk 0:00:21]}  c1=Q+ {[%clk 0:00:45]} 31. Rxc1 {[%clk 0:00:22]}  Bxc1+ {[%clk 0:00:45]} 32. Kxc1 {[%clk 0:00:22]}  Nd6 {[%clk 0:00:37]} 33. Nc3 {[%clk 0:00:23]}  a6 {[%clk 0:00:37]} 34. Kd2 {[%clk 0:00:23]}  Nc4+ {[%clk 0:00:31]} 35. Kd3 {[%clk 0:00:24]}  Kd6 {[%clk 0:00:31]} 36. Kd4 {[%clk 0:00:23]}  e5+ {[%clk 0:00:30]} 37. Kd3 {[%clk 0:00:23]}  Kc6 {[%clk 0:00:26]} 38. h4 {[%clk 0:00:23]}  Nd6 {[%clk 0:00:26]} 39. Ne4 {[%clk 0:00:21]}  Nxe4 {[%clk 0:00:17]} 40. Kxe4 {[%clk 0:00:22]}  Kd6 {[%clk 0:00:18]} 41. f3 {[%clk 0:00:13]}  Ke6 {[%clk 0:00:18]} 42. Ke3 {[%clk 0:00:14]}  Kd5 {[%clk 0:00:18]} 43. Kd3 {[%clk 0:00:14]}  h5 {[%clk 0:00:13]} 44. g3 {[%clk 0:00:13]}  Kd6 {[%clk 0:00:12]} 45. Ke3 {[%clk 0:00:14]}  Ke7 {[%clk 0:00:11]} 46. Ke4 {[%clk 0:00:14]}  Ke6 {[%clk 0:00:11]} 47. g4 {[%clk 0:00:11]}  Kd6 {[%clk 0:00:04]} 48. gxh5 {[%clk 0:00:11]}  gxh5 {[%clk 0:00:05]} 49. Kf5 {[%clk 0:00:04]}  Kd5 {[%clk 0:00:05]} 50. Kg5 {[%clk 0:00:05]}  Kc4 {[%clk 0:00:05]} 51. Kxh5 {[%clk 0:00:05]}  Kxb4 {[%clk 0:00:06]} 52. Kg4 {[%clk 0:00:06]}  Ka3 {[%clk 0:00:06]} 53. h5 {[%clk 0:00:06]}  Kxa2 {[%clk 0:00:07]} 54. h6 {[%clk 0:00:07]}  b4 {[%clk 0:00:08]} 55. h7 {[%clk 0:00:08]}  b3 {[%clk 0:00:09]} 56. h8=Q {[%clk 0:00:09]}  b2 {[%clk 0:00:10]} 57. Qg8+ {[%clk 0:00:03]}  Ka1 {[%clk 0:00:09]} 58. Qe6 {[%clk 0:00:03]}  a5 {[%clk 0:00:05]} 59. Qxe5 {[%clk 0:00:04]}  a4 {[%clk 0:00:05]} 60. Qc3 {[%clk 0:00:04]}  Ka2 {[%clk 0:00:05]} 61. Qc4+ {[%clk 0:00:04]}  Ka3 {[%clk 0:00:05]} 62. Qc2 {[%clk 0:00:04]}  b1=Q {[%clk 0:00:05]} 63. Qxb1 {[%clk 0:00:02]} 1/2-1/2


[Site "https://www.chess.com"]

[Event "Titled Tuesday Blitz August 3 2021"]
[White "Yaran, Siar"]
[Black "Odegov, Artem"]
[WhiteFideId "6323006"]
[BlackFideId "34183644"]
[WhiteElo "1977"]
[BlackElo "2288"]
[Result "1/2-1/2"]
[Round "09"]
[TimeControl "180+1"]
[Date "2021.08.03"]
[WhiteClock "0:00:12"]
[BlackClock "0:00:10"]

1. e4 {[%clk 0:02:59]}  Nf6 {[%clk 0:02:59]} 2. e5 {[%clk 0:02:59]}  Nd5 {[%clk 0:02:59]} 3. d4 {[%clk 0:02:59]}  d6 {[%clk 0:02:58]} 4. Nf3 {[%clk 0:02:58]}  g6 {[%clk 0:02:58]} 5. Be2 {[%clk 0:02:58]}  Bg7 {[%clk 0:02:58]} 6. O-O {[%clk 0:02:58]}  O-O {[%clk 0:02:58]} 7. h3 {[%clk 0:02:54]}  c5 {[%clk 0:02:54]} 8. exd6 {[%clk 0:02:44]}  exd6 {[%clk 0:02:55]} 9. Nc3 {[%clk 0:02:37]}  Be6 {[%clk 0:02:48]} 10. Bg5 {[%clk 0:02:29]}  Qd7 {[%clk 0:02:46]} 11. Re1 {[%clk 0:02:25]}  Nc6 {[%clk 0:02:41]} 12. Nxd5 {[%clk 0:02:07]}  Bxd5 {[%clk 0:02:42]} 13. dxc5 {[%clk 0:02:07]}  dxc5 {[%clk 0:02:43]} 14. Bc4 {[%clk 0:01:55]}  Nd4 {[%clk 0:02:40]} 15. c3 {[%clk 0:01:45]}  Bxc4 {[%clk 0:02:09]} 16. cxd4 {[%clk 0:01:41]}  cxd4 {[%clk 0:02:10]} 17. Rc1 {[%clk 0:01:31]}  Be6 {[%clk 0:02:04]} 18. Qd2 {[%clk 0:01:26]}  Rac8 {[%clk 0:02:00]} 19. Rcd1 {[%clk 0:01:26]}  Bd5 {[%clk 0:00:57]} 20. Ne5 {[%clk 0:01:11]}  Qf5 {[%clk 0:00:46]} 21. Ng4 {[%clk 0:00:54]}  Rfe8 {[%clk 0:00:42]} 22. Nh6+ {[%clk 0:00:51]}  Bxh6 {[%clk 0:00:42]} 23. Bxh6 {[%clk 0:00:52]}  Qf6 {[%clk 0:00:37]} 24. Rxe8+ {[%clk 0:00:43]}  Rxe8 {[%clk 0:00:38]} 25. Qxd4 {[%clk 0:00:40]}  Qxd4 {[%clk 0:00:38]} 26. Rxd4 {[%clk 0:00:39]}  Bc6 {[%clk 0:00:32]} 27. a4 {[%clk 0:00:28]}  f6 {[%clk 0:00:31]} 28. Be3 {[%clk 0:00:27]}  Kf7 {[%clk 0:00:29]} 29. a5 {[%clk 0:00:22]}  a6 {[%clk 0:00:28]} 30. b4 {[%clk 0:00:21]}  g5 {[%clk 0:00:28]} 31. h4 {[%clk 0:00:19]}  h6 {[%clk 0:00:28]} 32. hxg5 {[%clk 0:00:18]}  hxg5 {[%clk 0:00:29]} 33. Kf1 {[%clk 0:00:19]}  Rc8 {[%clk 0:00:28]} 34. Rd6 {[%clk 0:00:18]}  Bb5+ {[%clk 0:00:28]} 35. Kg1 {[%clk 0:00:18]}  Rc4 {[%clk 0:00:26]} 36. Bd4 {[%clk 0:00:18]}  Ke7 {[%clk 0:00:20]} 37. Bc5 {[%clk 0:00:14]}  Kf7 {[%clk 0:00:18]} 38. f3 {[%clk 0:00:14]}  g4 {[%clk 0:00:13]} 39. Kf2 {[%clk 0:00:13]}  gxf3 {[%clk 0:00:13]} 40. gxf3 {[%clk 0:00:14]}  Bc6 {[%clk 0:00:14]} 41. Bd4 {[%clk 0:00:11]}  Ke7 {[%clk 0:00:13]} 42. Bc5 {[%clk 0:00:11]}  Kf7 {[%clk 0:00:12]} 43. Bd4 {[%clk 0:00:12]}  Ke7 {[%clk 0:00:12]} 44. Bc5 {[%clk 0:00:12]}  Kf7 {[%clk 0:00:10]} 1/2-1/2


[Site "https://www.chess.com"]

[Event "Titled Tuesday Blitz August 3 2021"]
[White "Zhuravlev, Alexey"]
[Black "Lee, Qing Aun"]
[WhiteFideId "4164199"]
[BlackFideId "5804167"]
[WhiteElo "2461"]
[BlackElo "2023"]
[Result "1-0"]
[Round "09"]
[TimeControl "180+1"]
[Date "2021.08.03"]
[WhiteClock "0:00:20"]
[BlackClock "0:00:24"]

1. e4 {[%clk 0:02:27]}  e6 {[%clk 0:02:59]} 2. d4 {[%clk 0:02:27]}  d5 {[%clk 0:02:59]} 3. Nc3 {[%clk 0:02:26]}  Bb4 {[%clk 0:02:58]} 4. e5 {[%clk 0:02:17]}  c5 {[%clk 0:02:58]} 5. a3 {[%clk 0:02:14]}  Bxc3+ {[%clk 0:02:58]} 6. bxc3 {[%clk 0:02:14]}  Ne7 {[%clk 0:02:58]} 7. Qg4 {[%clk 0:02:10]}  cxd4 {[%clk 0:02:58]} 8. Qxg7 {[%clk 0:02:01]}  Rg8 {[%clk 0:02:58]} 9. Qxh7 {[%clk 0:01:52]}  Qc7 {[%clk 0:02:58]} 10. Ne2 {[%clk 0:01:46]}  dxc3 {[%clk 0:02:58]} 11. f4 {[%clk 0:01:40]}  Nbc6 {[%clk 0:02:56]} 12. Qd3 {[%clk 0:01:36]}  d4 {[%clk 0:02:56]} 13. h4 {[%clk 0:01:17]}  Bd7 {[%clk 0:02:52]} 14. h5 {[%clk 0:01:10]}  O-O-O {[%clk 0:02:49]} 15. h6 {[%clk 0:01:10]}  Rg6 {[%clk 0:02:17]} 16. h7 {[%clk 0:01:10]}  Rh8 {[%clk 0:02:16]} 17. Nxd4 {[%clk 0:01:09]}  Nxd4 {[%clk 0:02:11]} 18. Qxd4 {[%clk 0:01:09]}  Kb8 {[%clk 0:02:11]} 19. Be3 {[%clk 0:00:56]}  b6 {[%clk 0:02:05]} 20. Bd3 {[%clk 0:00:56]}  Rxg2 {[%clk 0:02:01]} 21. O-O-O {[%clk 0:00:57]}  Bc6 {[%clk 0:01:45]} 22. Rhg1 {[%clk 0:00:57]}  Rh2 {[%clk 0:01:29]} 23. Qxc3 {[%clk 0:00:49]}  Nd5 {[%clk 0:01:25]} 24. Qd4 {[%clk 0:00:46]}  Qe7 {[%clk 0:01:25]} 25. Kb2 {[%clk 0:00:44]}  Kb7 {[%clk 0:00:59]} 26. Rg8 {[%clk 0:00:40]}  R8xh7 {[%clk 0:00:57]} 27. Bxh7 {[%clk 0:00:36]}  Rxh7 {[%clk 0:00:58]} 28. c4 {[%clk 0:00:35]}  Rh2+ {[%clk 0:00:55]} 29. Rd2 {[%clk 0:00:35]}  Rxd2+ {[%clk 0:00:50]} 30. Bxd2 {[%clk 0:00:32]}  Nc7 {[%clk 0:00:49]} 31. Qd8 {[%clk 0:00:28]}  Qxd8 {[%clk 0:00:46]} 32. Rxd8 {[%clk 0:00:29]}  Be8 {[%clk 0:00:45]} 33. Bb4 {[%clk 0:00:27]}  Kc6 {[%clk 0:00:35]} 34. Bd6 {[%clk 0:00:27]}  Bd7 {[%clk 0:00:35]} 35. Bxc7 {[%clk 0:00:26]}  Kxc7 {[%clk 0:00:35]} 36. Rf8 {[%clk 0:00:27]}  Kc6 {[%clk 0:00:32]} 37. Rxf7 {[%clk 0:00:26]}  a5 {[%clk 0:00:33]} 38. Kc3 {[%clk 0:00:25]}  a4 {[%clk 0:00:33]} 39. Kb4 {[%clk 0:00:20]}  Be8 {[%clk 0:00:30]} 40. Re7 {[%clk 0:00:19]}  Bd7 {[%clk 0:00:30]} 41. Rh7 {[%clk 0:00:17]}  Be8 {[%clk 0:00:30]} 42. Rg7 {[%clk 0:00:17]}  Bd7 {[%clk 0:00:28]} 43. Re7 {[%clk 0:00:18]}  Kc7 {[%clk 0:00:26]} 44. f5 {[%clk 0:00:18]}  Kd8 {[%clk 0:00:24]} 45. Rxd7+ {[%clk 0:00:18]}  Kxd7 {[%clk 0:00:23]} 46. f6 {[%clk 0:00:19]}  Ke8 {[%clk 0:00:24]} 47. Kb5 {[%clk 0:00:20]}  Kf7 {[%clk 0:00:24]} 48. Kxb6 {[%clk 0:00:20]} 1-0


[Site "https://www.chess.com"]

[Event "Titled Tuesday Blitz August 3 2021"]
[White "Zhurbinsky, David"]
[Black "Vasquez Schroeder, Rodrigo"]
[WhiteFideId "2072904"]
[BlackFideId "3400042"]
[WhiteElo "2571"]
[BlackElo "2744"]
[Result "0-1"]
[Round "09"]
[TimeControl "180+1"]
[Date "2021.08.03"]
[WhiteClock "0:00:13"]
[BlackClock "0:01:34"]

1. e4 {[%clk 0:03:00]}  c5 {[%clk 0:02:59]} 2. Nf3 {[%clk 0:03:00]}  d6 {[%clk 0:02:59]} 3. d4 {[%clk 0:03:00]}  cxd4 {[%clk 0:02:59]} 4. Nxd4 {[%clk 0:03:01]}  Nf6 {[%clk 0:02:59]} 5. f3 {[%clk 0:03:02]}  g6 {[%clk 0:02:58]} 6. c4 {[%clk 0:03:01]}  Bg7 {[%clk 0:02:59]} 7. Nc3 {[%clk 0:03:02]}  O-O {[%clk 0:02:59]} 8. Be3 {[%clk 0:03:03]}  Nc6 {[%clk 0:03:00]} 9. Be2 {[%clk 0:03:03]}  Bd7 {[%clk 0:02:59]} 10. O-O {[%clk 0:03:04]}  Nxd4 {[%clk 0:03:00]} 11. Bxd4 {[%clk 0:03:05]}  a5 {[%clk 0:03:00]} 12. Rc1 {[%clk 0:03:04]}  Bc6 {[%clk 0:03:01]} 13. Kh1 {[%clk 0:03:02]}  Nd7 {[%clk 0:02:54]} 14. Bxg7 {[%clk 0:03:02]}  Kxg7 {[%clk 0:02:54]} 15. Qd4+ {[%clk 0:03:01]}  f6 {[%clk 0:02:54]} 16. f4 {[%clk 0:02:54]}  a4 {[%clk 0:02:49]} 17. Bg4 {[%clk 0:02:33]}  Ra5 {[%clk 0:02:23]} 18. b4 {[%clk 0:01:47]}  axb3 {[%clk 0:02:20]} 19. axb3 {[%clk 0:01:48]}  Ra3 {[%clk 0:02:02]} 20. b4 {[%clk 0:01:41]}  Qb6 {[%clk 0:01:53]} 21. Qxb6 {[%clk 0:01:15]}  Nxb6 {[%clk 0:01:54]} 22. c5 {[%clk 0:01:15]}  dxc5 {[%clk 0:01:51]} 23. bxc5 {[%clk 0:01:16]}  Na4 {[%clk 0:01:51]} 24. Nd5 {[%clk 0:01:10]}  f5 {[%clk 0:01:46]} 25. Bf3 {[%clk 0:00:52]}  fxe4 {[%clk 0:01:46]} 26. Bxe4 {[%clk 0:00:53]}  e6 {[%clk 0:01:46]} 27. Nc7 {[%clk 0:00:36]}  Bxe4 {[%clk 0:01:46]} 28. Nxe6+ {[%clk 0:00:36]}  Kg8 {[%clk 0:01:45]} 29. Nxf8 {[%clk 0:00:36]}  Kxf8 {[%clk 0:01:45]} 30. Rc4 {[%clk 0:00:32]}  Bd3 {[%clk 0:01:42]} 31. Rcc1 {[%clk 0:00:23]}  Bxf1 {[%clk 0:01:41]} 32. Rxf1 {[%clk 0:00:23]}  Nxc5 {[%clk 0:01:41]} 33. h3 {[%clk 0:00:22]}  b5 {[%clk 0:01:39]} 34. f5 {[%clk 0:00:23]}  Kg7 {[%clk 0:01:37]} 35. Kh2 {[%clk 0:00:21]}  gxf5 {[%clk 0:01:35]} 36. Rxf5 {[%clk 0:00:21]}  Rc3 {[%clk 0:01:35]} 37. Rf4 {[%clk 0:00:20]}  Rc4 {[%clk 0:01:35]} 38. Rf3 {[%clk 0:00:19]}  b4 {[%clk 0:01:35]} 39. Rf2 {[%clk 0:00:18]}  b3 {[%clk 0:01:34]} 40. Kg3 {[%clk 0:00:13]}  Rc3+ {[%clk 0:01:34]} 0-1


[Site "https://www.chess.com"]

[Event "Titled Tuesday Blitz August 3 2021"]
[White "freshfoodcompany"]
[Black "Hansen, Sune Berg"]
[BlackFideId "1400266"]
[WhiteElo "2463"]
[BlackElo "2658"]
[Result "1-0"]
[Round "09"]
[TimeControl "180+1"]
[Date "2021.08.03"]
[WhiteClock "0:00:31"]
[BlackClock "0:00:10"]

1. d4 {[%clk 0:03:00]}  Nf6 {[%clk 0:02:58]} 2. c4 {[%clk 0:03:01]}  g6 {[%clk 0:02:57]} 3. Nc3 {[%clk 0:03:00]}  Bg7 {[%clk 0:02:57]} 4. e4 {[%clk 0:03:01]}  d6 {[%clk 0:02:57]} 5. Nf3 {[%clk 0:03:01]}  Nbd7 {[%clk 0:02:57]} 6. Be2 {[%clk 0:03:01]}  e5 {[%clk 0:02:57]} 7. Be3 {[%clk 0:03:01]}  O-O {[%clk 0:02:56]} 8. O-O {[%clk 0:02:58]}  Re8 {[%clk 0:02:56]} 9. d5 {[%clk 0:02:57]}  Nh5 {[%clk 0:02:55]} 10. Nd2 {[%clk 0:02:55]}  Nf4 {[%clk 0:02:54]} 11. Bxf4 {[%clk 0:02:53]}  exf4 {[%clk 0:02:54]} 12. f3 {[%clk 0:02:49]}  a6 {[%clk 0:02:40]} 13. Nb3 {[%clk 0:02:48]}  Qg5 {[%clk 0:02:34]} 14. Rf2 {[%clk 0:02:41]}  Be5 {[%clk 0:02:28]} 15. Bf1 {[%clk 0:02:38]}  h5 {[%clk 0:02:25]} 16. Kh1 {[%clk 0:02:31]}  Nf6 {[%clk 0:02:11]} 17. Nd4 {[%clk 0:02:27]}  h4 {[%clk 0:02:03]} 18. Nce2 {[%clk 0:02:21]}  Nh5 {[%clk 0:02:02]} 19. h3 {[%clk 0:02:16]}  Qf6 {[%clk 0:01:52]} 20. Rc1 {[%clk 0:02:05]}  Ng3+ {[%clk 0:01:45]} 21. Kh2 {[%clk 0:01:52]}  Nxe2 {[%clk 0:01:41]} 22. Nxe2 {[%clk 0:01:48]}  Bxb2 {[%clk 0:01:41]} 23. Rc2 {[%clk 0:01:47]}  Be5 {[%clk 0:01:31]} 24. Nc1 {[%clk 0:01:44]}  Bd4 {[%clk 0:01:25]} 25. Rfe2 {[%clk 0:01:41]}  Bd7 {[%clk 0:01:19]} 26. Nb3 {[%clk 0:01:39]}  Be3 {[%clk 0:01:16]} 27. Re1 {[%clk 0:01:29]}  Qg5 {[%clk 0:01:15]} 28. Bd3 {[%clk 0:01:25]}  Qg3+ {[%clk 0:01:12]} 29. Kh1 {[%clk 0:01:25]}  Re5 {[%clk 0:01:00]} 30. Nd2 {[%clk 0:01:15]}  Rg5 {[%clk 0:00:53]} 31. Nf1 {[%clk 0:01:01]}  Qf2 {[%clk 0:00:19]} 32. Rxf2 {[%clk 0:00:59]}  Bxf2 {[%clk 0:00:20]} 33. Re2 {[%clk 0:00:58]}  Bc5 {[%clk 0:00:19]} 34. Qc1 {[%clk 0:00:56]}  Re5 {[%clk 0:00:17]} 35. Qxf4 {[%clk 0:00:55]}  g5 {[%clk 0:00:18]} 36. Qc1 {[%clk 0:00:53]}  Rae8 {[%clk 0:00:18]} 37. Ne3 {[%clk 0:00:52]}  f5 {[%clk 0:00:18]} 38. Nf1 {[%clk 0:00:39]}  f4 {[%clk 0:00:17]} 39. Qb1 {[%clk 0:00:35]}  b6 {[%clk 0:00:16]} 40. Qb3 {[%clk 0:00:34]}  Rb8 {[%clk 0:00:16]} 41. Nh2 {[%clk 0:00:33]}  Kf7 {[%clk 0:00:14]} 42. Ng4 {[%clk 0:00:33]}  Re7 {[%clk 0:00:12]} 43. e5 {[%clk 0:00:32]}  dxe5 {[%clk 0:00:10]} 44. Nxe5+ {[%clk 0:00:32]}  Kg8 {[%clk 0:00:10]} 45. Nxd7 {[%clk 0:00:31]}  Rxd7 {[%clk 0:00:10]} 46. Bf5 {[%clk 0:00:31]} 1-0


[Site "https://www.chess.com"]

[Event "Titled Tuesday Blitz August 3 2021"]
[White "Aldokhin, Ivan"]
[Black "Maksimovic, Bojan"]
[WhiteFideId "24115720"]
[BlackFideId "14408120"]
[WhiteElo "2306"]
[BlackElo "2439"]
[Result "0-1"]
[Round "10"]
[TimeControl "180+1"]
[Date "2021.08.03"]
[WhiteClock "0:00:05"]
[BlackClock "0:01:32"]

1. e4 {[%clk 0:02:54]}  g6 {[%clk 0:03:00]} 2. d4 {[%clk 0:02:54]}  Bg7 {[%clk 0:03:00]} 3. Nc3 {[%clk 0:02:54]}  d6 {[%clk 0:03:01]} 4. Bg5 {[%clk 0:02:53]}  a6 {[%clk 0:02:59]} 5. f4 {[%clk 0:02:52]}  b5 {[%clk 0:02:55]} 6. Nf3 {[%clk 0:02:52]}  Bb7 {[%clk 0:02:55]} 7. Bd3 {[%clk 0:02:53]}  Nd7 {[%clk 0:02:54]} 8. e5 {[%clk 0:02:51]}  c5 {[%clk 0:02:54]} 9. exd6 {[%clk 0:02:47]}  Ngf6 {[%clk 0:02:55]} 10. O-O {[%clk 0:02:23]}  O-O {[%clk 0:02:51]} 11. dxe7 {[%clk 0:02:04]}  Qxe7 {[%clk 0:02:52]} 12. Re1 {[%clk 0:01:45]}  Qd6 {[%clk 0:02:52]} 13. Ne4 {[%clk 0:01:45]}  Nxe4 {[%clk 0:02:49]} 14. Bxe4 {[%clk 0:01:46]}  Bxe4 {[%clk 0:02:50]} 15. Rxe4 {[%clk 0:01:45]}  cxd4 {[%clk 0:02:50]} 16. Be7 {[%clk 0:01:35]}  Qc6 {[%clk 0:02:51]} 17. Bxf8 {[%clk 0:01:31]}  Qxe4 {[%clk 0:02:36]} 18. Bxg7 {[%clk 0:01:30]}  Qe3+ {[%clk 0:02:37]} 19. Kf1 {[%clk 0:01:24]}  Kxg7 {[%clk 0:02:35]} 20. Qxd4+ {[%clk 0:01:24]}  Qxd4 {[%clk 0:02:35]} 21. Nxd4 {[%clk 0:01:25]}  Rc8 {[%clk 0:02:32]} 22. c3 {[%clk 0:01:25]}  Nc5 {[%clk 0:02:32]} 23. Ke2 {[%clk 0:01:16]}  Na4 {[%clk 0:02:31]} 24. Rb1 {[%clk 0:01:14]}  Rxc3 {[%clk 0:02:16]} 25. bxc3 {[%clk 0:01:06]}  Nxc3+ {[%clk 0:02:17]} 26. Kd3 {[%clk 0:01:06]}  Nxb1 {[%clk 0:02:18]} 27. Kc2 {[%clk 0:01:05]}  Na3+ {[%clk 0:02:18]} 28. Kb3 {[%clk 0:01:06]}  Nc4 {[%clk 0:02:19]} 29. a4 {[%clk 0:00:59]}  Nd2+ {[%clk 0:02:12]} 30. Kc2 {[%clk 0:00:53]}  Nf1 {[%clk 0:02:11]} 31. a5 {[%clk 0:00:45]}  Ne3+ {[%clk 0:02:09]} 32. Kd3 {[%clk 0:00:38]}  Nc4 {[%clk 0:01:58]} 33. Nc6 {[%clk 0:00:37]}  Kf6 {[%clk 0:01:53]} 34. Kd4 {[%clk 0:00:31]}  Kf5 {[%clk 0:01:52]} 35. g3 {[%clk 0:00:28]}  h5 {[%clk 0:01:52]} 36. Kc5 {[%clk 0:00:16]}  Kg4 {[%clk 0:01:44]} 37. Kb4 {[%clk 0:00:13]}  Kh3 {[%clk 0:01:31]} 38. Nb8 {[%clk 0:00:13]}  Kxh2 {[%clk 0:01:31]} 39. Nxa6 {[%clk 0:00:14]}  Kxg3 {[%clk 0:01:32]} 40. Nc5 {[%clk 0:00:13]}  Nxa5 {[%clk 0:01:31]} 41. Kxa5 {[%clk 0:00:09]}  h4 {[%clk 0:01:32]} 42. f5 {[%clk 0:00:05]}  gxf5 {[%clk 0:01:31]} 43. Kxb5 {[%clk 0:00:05]}  h3 {[%clk 0:01:32]} 0-1


[Site "https://www.chess.com"]

[Event "Titled Tuesday Blitz August 3 2021"]
[White "Anuj Shrivatri"]
[Black "Alavi, Sayed Javad"]
[WhiteFideId "35070924"]
[BlackFideId "12500607"]
[WhiteElo "2038"]
[BlackElo "2495"]
[Result "0-1"]
[Round "10"]
[TimeControl "180+1"]
[Date "2021.08.03"]
[WhiteClock "0:00:02"]
[BlackClock "0:00:10"]

1. c4 {[%clk 0:02:58]}  e6 {[%clk 0:02:59]} 2. g3 {[%clk 0:02:57]}  d5 {[%clk 0:02:59]} 3. Bg2 {[%clk 0:02:58]}  Nf6 {[%clk 0:03:00]} 4. Nf3 {[%clk 0:02:56]}  dxc4 {[%clk 0:03:00]} 5. O-O {[%clk 0:02:51]}  a6 {[%clk 0:02:46]} 6. Qc2 {[%clk 0:02:50]}  Be7 {[%clk 0:02:43]} 7. Qxc4 {[%clk 0:02:48]}  b5 {[%clk 0:02:43]} 8. Qc2 {[%clk 0:02:48]}  Bb7 {[%clk 0:02:43]} 9. a4 {[%clk 0:02:45]}  Nbd7 {[%clk 0:02:40]} 10. Nc3 {[%clk 0:02:45]}  b4 {[%clk 0:02:29]} 11. Nd1 {[%clk 0:02:45]}  c5 {[%clk 0:02:27]} 12. d3 {[%clk 0:02:43]}  a5 {[%clk 0:02:21]} 13. Ne3 {[%clk 0:02:41]}  Nb6 {[%clk 0:02:20]} 14. b3 {[%clk 0:02:34]}  Nfd5 {[%clk 0:02:10]} 15. Bb2 {[%clk 0:02:28]}  Nxe3 {[%clk 0:02:08]} 16. fxe3 {[%clk 0:02:26]}  O-O {[%clk 0:02:08]} 17. Ne5 {[%clk 0:02:16]}  Bxg2 {[%clk 0:02:06]} 18. Kxg2 {[%clk 0:02:17]}  Rc8 {[%clk 0:02:04]} 19. e4 {[%clk 0:02:15]}  Bf6 {[%clk 0:01:49]} 20. Rab1 {[%clk 0:01:43]}  Qe7 {[%clk 0:01:43]} 21. Rf3 {[%clk 0:01:38]}  Bxe5 {[%clk 0:01:39]} 22. Bxe5 {[%clk 0:01:36]}  f6 {[%clk 0:01:40]} 23. Bb2 {[%clk 0:01:34]}  e5 {[%clk 0:01:32]} 24. Bc1 {[%clk 0:01:32]}  Qe6 {[%clk 0:01:31]} 25. Be3 {[%clk 0:01:32]}  Nd7 {[%clk 0:01:28]} 26. Kh1 {[%clk 0:01:25]}  Rfd8 {[%clk 0:01:23]} 27. Rg1 {[%clk 0:01:23]}  Nb8 {[%clk 0:01:15]} 28. g4 {[%clk 0:01:19]}  h6 {[%clk 0:01:13]} 29. h4 {[%clk 0:01:18]}  Kf7 {[%clk 0:01:07]} 30. Rg2 {[%clk 0:00:59]}  Nc6 {[%clk 0:01:02]} 31. g5 {[%clk 0:00:57]}  hxg5 {[%clk 0:00:58]} 32. hxg5 {[%clk 0:00:58]}  Nd4 {[%clk 0:00:56]} 33. Bxd4 {[%clk 0:00:57]}  cxd4 {[%clk 0:00:57]} 34. Qd1 {[%clk 0:00:55]}  Rh8+ {[%clk 0:00:43]} 35. Kg1 {[%clk 0:00:55]}  Rh3 {[%clk 0:00:35]} 36. gxf6 {[%clk 0:00:41]}  gxf6 {[%clk 0:00:32]} 37. Rf5 {[%clk 0:00:30]}  Rch8 {[%clk 0:00:28]} 38. Kf2 {[%clk 0:00:30]}  Rh2 {[%clk 0:00:20]} 39. Qg1 {[%clk 0:00:29]}  Rxg2+ {[%clk 0:00:18]} 40. Qxg2 {[%clk 0:00:30]}  Qxb3 {[%clk 0:00:16]} 41. Qg5 {[%clk 0:00:06]}  Qe6 {[%clk 0:00:15]} 42. Qg1 {[%clk 0:00:06]}  b3 {[%clk 0:00:15]} 43. Qc1 {[%clk 0:00:06]}  Rc8 {[%clk 0:00:15]} 44. Qh6 {[%clk 0:00:06]}  Ke7 {[%clk 0:00:14]} 45. Rh5 {[%clk 0:00:04]}  b2 {[%clk 0:00:13]} 46. Qg6 {[%clk 0:00:04]}  b1=Q {[%clk 0:00:11]} 47. Rh7+ {[%clk 0:00:04]}  Kd6 {[%clk 0:00:12]} 48. Rf7 {[%clk 0:00:02]}  Qc1 {[%clk 0:00:10]} 49. Rxf6 {[%clk 0:00:01]}  Qf4+ {[%clk 0:00:10]} 50. Rxf4 {[%clk 0:00:02]}  Qxg6 {[%clk 0:00:10]} 0-1


[Site "https://www.chess.com"]

[Event "Titled Tuesday Blitz August 3 2021"]
[White "Begunov, Konstantin"]
[Black "Mekhitarian, Krikor Sevag"]
[WhiteFideId "4118510"]
[BlackFideId "2107660"]
[WhiteElo "2262"]
[BlackElo "2598"]
[Result "1-0"]
[Round "10"]
[TimeControl "180+1"]
[Date "2021.08.03"]
[WhiteClock "0:00:21"]
[BlackClock "0:00:17"]

1. d4 {[%clk 0:03:00]}  Nf6 {[%clk 0:02:59]} 2. c4 {[%clk 0:03:00]}  g6 {[%clk 0:02:59]} 3. f3 {[%clk 0:03:01]}  e6 {[%clk 0:02:49]} 4. e4 {[%clk 0:02:59]}  d5 {[%clk 0:02:49]} 5. cxd5 {[%clk 0:02:56]}  exd5 {[%clk 0:02:49]} 6. e5 {[%clk 0:02:56]}  Nh5 {[%clk 0:02:49]} 7. g3 {[%clk 0:02:53]}  c5 {[%clk 0:02:48]} 8. Ne2 {[%clk 0:02:47]}  Nc6 {[%clk 0:02:48]} 9. f4 {[%clk 0:02:42]}  cxd4 {[%clk 0:02:40]} 10. Nxd4 {[%clk 0:02:38]}  Bc5 {[%clk 0:02:40]} 11. Nxc6 {[%clk 0:02:32]}  bxc6 {[%clk 0:02:39]} 12. Qc2 {[%clk 0:02:26]}  Qb6 {[%clk 0:02:36]} 13. Nc3 {[%clk 0:02:23]}  Bf5 {[%clk 0:02:31]} 14. Bd3 {[%clk 0:02:08]}  Bxd3 {[%clk 0:02:22]} 15. Qxd3 {[%clk 0:02:09]}  O-O {[%clk 0:02:17]} 16. Ke2 {[%clk 0:01:36]}  Qd8 {[%clk 0:01:44]} 17. Re1 {[%clk 0:01:09]}  Qf6 {[%clk 0:01:40]} 18. exf6 {[%clk 0:01:08]}  Nxf6 {[%clk 0:01:10]} 19. Kf1 {[%clk 0:01:04]}  Rfe8 {[%clk 0:00:47]} 20. Bd2 {[%clk 0:00:59]}  Ng4 {[%clk 0:00:45]} 21. Kg2 {[%clk 0:00:56]}  f5 {[%clk 0:00:41]} 22. Rxe8+ {[%clk 0:00:51]}  Rxe8 {[%clk 0:00:40]} 23. Re1 {[%clk 0:00:50]}  Rb8 {[%clk 0:00:40]} 24. b3 {[%clk 0:00:40]}  Nf6 {[%clk 0:00:39]} 25. Be3 {[%clk 0:00:36]}  Bb4 {[%clk 0:00:40]} 26. Bxa7 {[%clk 0:00:33]}  Ra8 {[%clk 0:00:39]} 27. Bd4 {[%clk 0:00:33]}  Ne4 {[%clk 0:00:39]} 28. Nxe4 {[%clk 0:00:31]}  fxe4 {[%clk 0:00:36]} 29. Qc2 {[%clk 0:00:31]}  c5 {[%clk 0:00:34]} 30. Bc3 {[%clk 0:00:30]}  Ba3 {[%clk 0:00:22]} 31. Be5 {[%clk 0:00:23]}  Bb4 {[%clk 0:00:20]} 32. Rd1 {[%clk 0:00:22]}  Rd8 {[%clk 0:00:17]} 33. Rxd5 {[%clk 0:00:20]}  Rxd5 {[%clk 0:00:17]} 34. Qc4 {[%clk 0:00:21]} 1-0


[Site "https://www.chess.com"]